Workbook

Sheet 베정내역
A1: 2025년 퇴비부숙제 지원사업 배정내역
A3: 읍면 | B3: 사육두수 비율(%) | C3: 사육두수(두) | D3: 한육우 (두) | E3: 젖소 (두) | F3: 배정량 (포) | G3: 단가 (원) | H3: 사업비(원) | K3: 비 고
H4: 계 | I4: 보조금 | J4: 자부담
A5: 계 | B5: =SUM(B6:B17) -> 100 | C5: =SUM(D5:E5) -> 53,188 | D5: =SUM(D6:D17) -> 52,585 | E5: =SUM(E6:E17) -> 603 | F5: =SUM(F6:F17) -> 3,100 | H5: =SUM(H6:H17) -> 62,000,000 | I5: =SUM(I6:I17) -> 31,000,000 | J5: =SUM(J6:J17) -> 31,000,000
A6: 예천읍 | B6: =(C6/$C$5)*100 -> 12 | C6: =SUM(D6:E6) -> 6,274 | D6: 6,266 | E6: 8 | F6: 366 | G6: 20,000 | H6: =F6*G6 -> 7,320,000 | I6: =H6*50% -> 3,660,000 | J6: =H6-I6 -> 3,660,000
A7: 용문면 | B7: =(C7/$C$5)*100 -> 5 | C7: 2,552 | D7: 2,552 | F7: 149 | G7: 20,000 | H7: =F7*G7 -> 2,980,000 | I7: =H7*50% -> 1,490,000 | J7: =H7-I7 -> 1,490,000
A8: 효자면 | B8: 1 | C8: 624 | D8: 624 | F8: 36 | G8: 20,000 | H8: 720,000 | I8: 360,000 | J8: 360,000
A9: 은풍면 | B9: 3 | C9: 1,367 | D9: 1,268 | E9: 99 | F9: 80 | G9: 20,000 | H9: 1,600,000 | I9: 800,000 | J9: 800,000
A10: 감천면 | B10: 20 | C10: 10,434 | D10: 10,307 | E10: 127 | F10: 608 | G10: 20,000 | H10: 12,160,000 | I10: 6,080,000 | J10: 6,080,000
A11: 보문면 | B11: 4 | C11: 2,054 | D11: 2,054 | E11: 0 | F11: 120 | G11: 20,000 | H11: 2,400,000 | I11: 1,200,000 | J11: 1,200,000
A12: 호명읍 | B12: 7 | C12: 3,662 | D12: 3,639 | E12: 23 | F12: 213 | G12: 20,000 | H12: 4,260,000 | I12: 2,130,000 | J12: 2,130,000
A13: 유천면 | B13: 7 | C13: 3,819 | D13: 3,819 | E13: 0 | F13: 223 | G13: 20,000 | H13: 4,460,000 | I13: 2,230,000 | J13: 2,230,000
A14: 용궁면 | B14: 8 | C14: 4,075 | D14: 3,854 | E14: 221 | F14: 237 | G14: 20,000 | H14: 4,740,000 | I14: 2,370,000 | J14: 2,370,000
A15: 개포면 | B15: 4 | C15: 1,966 | D15: 1,966 | E15: 0 | F15: 115 | G15: 20,000 | H15: 2,300,000 | I15: 1,150,000 | J15: 1,150,000
A16: 지보면 | B16: 9 | C16: 4,622 | D16: 4,622 | E16: 0 | F16: 269 | G16: 20,000 | H16: 5,380,000 | I16: 2,690,000 | J16: 2,690,000
A17: 풍양면 | B17: 22 | C17: 11,739 | D17: 11,614 | E17: 125 | F17: 684 | G17: 20,000 | H17: 13,680,000 | I17: =(H17*50%) -> 6,840,000 | J17: 6,840,000
A18: ※ 사육두수 : 2024년 하반기 가축통계 기준
A19: ※ 배정량 : 사업량 *읍면 사육두수 비율
A20: ※ 유의사항 : 읍면에서 농가 배정시 퇴비부숙제 상품별로 가격차이가 발생하므로 배정량과 상관없이 보조금액을 기준으로 사업진행 하시기 바랍니다.

Sheet Sheet2
A1: 순번 | B1: 고유번호 | C1: 주사육업종 | D1: 행정동명 | E1: 면적
A2: 합계 | E2: =E3 -> 128,569
A3: 소계 | E3: =SUM(E4:E229) -> 128,569
A4: 12 | B4: V4YYA | C4: 한우 | D4: 감천면 | E4: 1,438
A5: 39 | B5: V4YZA | C5: 한우 | D5: 감천면 | E5: 1,483.92
A6: 57 | B6: V4Z05 | C6: 한우 | D6: 감천면 | E6: 330.5
A7: 101 | B7: V4Z1W | C7: 한우 | D7: 감천면 | E7: 1,487.50
A8: 102 | B8: V4Z1X | C8: 한우 | D8: 감천면 | E8: 608
A9: 103 | B9: V4Z1Y | C9: 한우 | D9: 감천면 | E9: 581.5
A10: 104 | B10: V4Z1Z | C10: 한우 | D10: 감천면 | E10: 265
A11: 109 | B11: V4Z27 | C11: 한우 | D11: 감천면 | E11: 456.2
A12: 125 | B12: V4Z2U | C12: 한우 | D12: 감천면 | E12: 496
A13: 126 | B13: V4Z2V | C13: 한우 | D13: 감천면 | E13: 666
A14: 127 | B14: V4Z2W | C14: 한우 | D14: 감천면 | E14: 500
A15: 128 | B15: V4Z2X | C15: 한우 | D15: 감천면 | E15: 919
A16: 129 | B16: V4Z2Y | C16: 한우 | D16: 감천면 | E16: 1,129
A17: 130 | B17: V4Z2Z | C17: 한우 | D17: 감천면 | E17: 270.3
A18: 131 | B18: V4Z31 | C18: 한우 | D18: 감천면 | E18: 264.4
A19: 150 | B19: V4Z3Z | C19: 한우 | D19: 감천면 | E19: 991.6
A20: 151 | B20: V4Z40 | C20: 한우 | D20: 감천면 | E20: 596.1
A21: 152 | B21: V4Z41 | C21: 한우 | D21: 감천면 | E21: 189
A22: 153 | B22: V4Z42 | C22: 한우 | D22: 감천면 | E22: 330.5
A23: 154 | B23: V4Z43 | C23: 한우 | D23: 감천면 | E23: 991
A24: 155 | B24: V4Z44 | C24: 한우 | D24: 감천면 | E24: 660
A25: 156 | B25: V4Z45 | C25: 한우 | D25: 감천면 | E25: 1,322
A26: 157 | B26: V4Z47 | C26: 한우 | D26: 감천면 | E26: 458
A27: 158 | B27: V4Z48 | C27: 한우 | D27: 감천면 | E27: 1,524.07
A28: 159 | B28: V4Z49 | C28: 한우 | D28: 감천면 | E28: 294.6
A29: 161 | B29: V4Z4B | C29: 한우 | D29: 감천면 | E29: 183
A30: 175 | B30: V4Z4Y | C30: 한우 | D30: 감천면 | E30: 687
A31: 176 | B31: V4Z50 | C31: 한우 | D31: 감천면 | E31: 872
A32: 188 | B32: V4Z5H | C32: 한우 | D32: 감천면 | E32: 327
A33: 203 | B33: V4Z62 | C33: 한우 | D33: 감천면 | E33: 310.8
A34: 205 | B34: V4Z64 | C34: 한우 | D34: 감천면 | E34: 328
A35: 264 | B35: V4Z85 | C35: 한우 | D35: 감천면 | E35: 384
A36: 289 | B36: V4Z9B | C36: 한우 | D36: 감천면 | E36: 700
A37: 298 | B37: V4Z9M | C37: 한우 | D37: 감천면 | E37: 400
A38: 326 | B38: V4ZAY | C38: 한우 | D38: 감천면 | E38: 220
A39: 327 | B39: V4ZAZ | C39: 한우 | D39: 감천면 | E39: 450
A40: 343 | B40: V4ZBN | C40: 한우 | D40: 감천면 | E40: 342
A41: 344 | B41: V4ZBO | C41: 한우 | D41: 감천면 | E41: 182
A42: 345 | B42: V4ZBP | C42: 한우 | D42: 감천면 | E42: 1,278
A43: 358 | B43: V4ZCC | C43: 한우 | D43: 감천면 | E43: 288
A44: 364 | B44: V4ZCK | C44: 한우 | D44: 감천면 | E44: 360
A45: 369 | B45: V4ZCU | C45: 한우 | D45: 감천면 | E45: 368
A46: 370 | B46: V4ZCV | C46: 한우 | D46: 감천면 | E46: 709
A47: 395 | B47: V4ZDX | C47: 한우 | D47: 감천면 | E47: 450
A48: 400 | B48: V4ZE5 | C48: 한우 | D48: 감천면 | E48: 768
A49: 406 | B49: V4ZEC | C49: 한우 | D49: 감천면 | E49: 300
A50: 410 | B50: V4ZEG | C50: 한우 | D50: 감천면 | E50: 1,153.50
A51: 420 | B51: V4ZEQ | C51: 한우 | D51: 감천면 | E51: 448
A52: 424 | B52: V4ZEU | C52: 한우 | D52: 감천면 | E52: 368.5
A53: 427 | B53: V4ZEY | C53: 한우 | D53: 감천면 | E53: 320
A54: 429 | B54: V4ZF0 | C54: 한우 | D54: 감천면 | E54: 526.5
A55: 430 | B55: V4ZF1 | C55: 한우 | D55: 감천면 | E55: 320
A56: 432 | B56: V4ZF4 | C56: 한우 | D56: 감천면 | E56: 416
A57: 467 | B57: V4ZG9 | C57: 한우 | D57: 감천면 | E57: 643
A58: 469 | B58: V4ZGC | C58: 한우 | D58: 감천면 | E58: 768
A59: 474 | B59: V4ZGI | C59: 한우 | D59: 감천면 | E59: 2,412
A60: 496 | B60: 44ZHB | C60: 한우 | D60: 감천면 | E60: 384
A61: 501 | B61: 44ZHJ | C61: 한우 | D61: 감천면 | E61: 620
A62: 512 | B62: 44ZHX | C62: 한우 | D62: 감천면 | E62: 1,437
A63: 515 | B63: 44ZI1 | C63: 한우 | D63: 감천면 | E63: 812
A64: 521 | B64: 44ZI8 | C64: 한우 | D64: 감천면 | E64: 1,068
A65: 524 | B65: 44ZIB | C65: 한우 | D65: 감천면 | E65: 135
A66: 525 | B66: 44ZIC | C66: 한우 | D66: 감천면 | E66: 288
A67: 526 | B67: 44ZIF | C67: 한우 | D67: 감천면 | E67: 452.8
A68: 544 | B68: 44ZJ3 | C68: 한우 | D68: 감천면 | E68: 198.4
A69: 550 | B69: 44ZJA | C69: 한우 | D69: 감천면 | E69: 768
A70: 552 | B70: 44ZJC | C70: 한우 | D70: 감천면 | E70: 1,600
A71: 561 | B71: 44ZJL | C71: 한우 | D71: 감천면 | E71: 1,248
A72: 580 | B72: 44ZKC | C72: 한우 | D72: 감천면 | E72: 1,088
A73: 584 | B73: 44ZKI | C73: 한우 | D73: 감천면 | E73: 387
A74: 585 | B74: 44ZKJ | C74: 한우 | D74: 감천면 | E74: 1,537.15
A75: 586 | B75: 44ZKK | C75: 한우 | D75: 감천면 | E75: 192
A76: 592 | B76: 44ZKT | C76: 한우 | D76: 감천면 | E76: 768
A77: 593 | B77: 44ZKU | C77: 한우 | D77: 감천면 | E77: 160
A78: 596 | B78: 44ZKX | C78: 한우 | D78: 감천면 | E78: 384
A79: 597 | B79: 44ZKY | C79: 한우 | D79: 감천면 | E79: 283
A80: 760 | B80: 44ZSB | C80: 한우 | D80: 감천면 | E80: 269
A81: 761 | B81: 44ZSC | C81: 한우 | D81: 감천면 | E81: 115
A82: 762 | B82: 44ZSF | C82: 한우 | D82: 감천면 | E82: 227
A83: 763 | B83: 44ZSG | C83: 한우 | D83: 감천면 | E83: 40
A84: 776 | B84: 44ZSY | C84: 한우 | D84: 감천면 | E84: 50
A85: 777 | B85: 44ZT0 | C85: 한우 | D85: 감천면 | E85: 50
A86: 778 | B86: 44ZT2 | C86: 한우 | D86: 감천면 | E86: 35
A87: 924 | B87: 44ZZV | C87: 한우 | D87: 감천면 | E87: 448
A88: 1012 | B88: 5503S | C88: 한우 | D88: 감천면 | E88: 198
A89: 1013 | B89: 5503T | C89: 한우 | D89: 감천면 | E89: 132
A90: 1014 | B90: 5503U | C90: 한우 | D90: 감천면 | E90: 165
A91: 1015 | B91: 5503V | C91: 한우 | D91: 감천면 | E91: 390
A92: 1016 | B92: 5503W | C92: 한우 | D92: 감천면 | E92: 99
A93: 1017 | B93: 5503Y | C93: 한우 | D93: 감천면 | E93: 99
A94: 1018 | B94: 5503Z | C94: 한우 | D94: 감천면 | E94: 230
A95: 1019 | B95: 55041 | C95: 한우 | D95: 감천면 | E95: 264
A96: 1020 | B96: 55042 | C96: 한우 | D96: 감천면 | E96: 66
A97: 1021 | B97: 55043 | C97: 한우 | D97: 감천면 | E97: 161
A98: 1022 | B98: 55045 | C98: 한우 | D98: 감천면 | E98: 82
A99: 1023 | B99: 55047 | C99: 한우 | D99: 감천면 | E99: 136
A100: 1024 | B100: 55048 | C100: 한우 | D100: 감천면 | E100: 49
A101: 1025 | B101: 55049 | C101: 한우 | D101: 감천면 | E101: 66
A102: 1026 | B102: 5504A | C102: 한우 | D102: 감천면 | E102: 264
A103: 1027 | B103: 5504B | C103: 한우 | D103: 감천면 | E103: 264
A104: 1028 | B104: 5504C | C104: 한우 | D104: 감천면 | E104: 283
A105: 1029 | B105: 5504E | C105: 한우 | D105: 감천면 | E105: 198
A106: 1030 | B106: 5504F | C106: 한우 | D106: 감천면 | E106: 198
A107: 1031 | B107: 5504G | C107: 한우 | D107: 감천면 | E107: 320
A108: 1032 | B108: 5504H | C108: 한우 | D108: 감천면 | E108: 99
A109: 1033 | B109: 5504I | C109: 한우 | D109: 감천면 | E109: 132
A110: 1034 | B110: 5504J | C110: 한우 | D110: 감천면 | E110: 66
A111: 1035 | B111: 5504L | C111: 한우 | D111: 감천면 | E111: 436
A112: 1036 | B112: 5504M | C112: 한우 | D112: 감천면 | E112: 332
A113: 1037 | B113: 5504N | C113: 한우 | D113: 감천면 | E113: 84
A114: 1038 | B114: 5504O | C114: 한우 | D114: 감천면 | E114: 66
A115: 1136 | B115: 5508I | C115: 한우 | D115: 감천면 | E115: 66
A116: 1137 | B116: 5508J | C116: 한우 | D116: 감천면 | E116: 84
A117: 1138 | B117: 5508K | C117: 한우 | D117: 감천면 | E117: 129
A118: 1139 | B118: 5508L | C118: 한우 | D118: 감천면 | E118: 486
A119: 1173 | B119: 550A6 | C119: 한우 | D119: 감천면 | E119: 224
A120: 1178 | B120: 550AB | C120: 한우 | D120: 감천면 | E120: 230
A121: 1179 | B121: 550AC | C121: 한우 | D121: 감천면 | E121: 132
A122: 1180 | B122: 550AD | C122: 한우 | D122: 감천면 | E122: 66
A123: 1181 | B123: 550AE | C123: 한우 | D123: 감천면 | E123: 66
A124: 1182 | B124: 550AF | C124: 한우 | D124: 감천면 | E124: 112
A125: 1183 | B125: 550AG | C125: 한우 | D125: 감천면 | E125: 16
A126: 1184 | B126: 550AH | C126: 한우 | D126: 감천면 | E126: 66
A127: 1185 | B127: 550AI | C127: 한우 | D127: 감천면 | E127: 264
A128: 1186 | B128: 550AJ | C128: 한우 | D128: 감천면 | E128: 99
A129: 1187 | B129: 550AK | C129: 한우 | D129: 감천면 | E129: 172
A130: 1188 | B130: 550AM | C130: 한우 | D130: 감천면 | E130: 216
A131: 1189 | B131: 550AN | C131: 한우 | D131: 감천면 | E131: 33
A132: 1200 | B132: 550B6 | C132: 한우 | D132: 감천면 | E132: 655
A133: 1210 | B133: 550BW | C133: 한우 | D133: 감천면 | E133: 250
A134: 1211 | B134: 550BX | C134: 한우 | D134: 감천면 | E134: 750
A135: 1214 | B135: 550C3 | C135: 한우 | D135: 감천면 | E135: 644
A136: 1219 | B136: 550C8 | C136: 한우 | D136: 감천면 | E136: 390
A137: 1249 | B137: 550DD | C137: 한우 | D137: 감천면 | E137: 960
A138: 1250 | B138: 550DE | C138: 한우 | D138: 감천면 | E138: 800
A139: 1276 | B139: 5.50E+11 | C139: 한우 | D139: 감천면 | E139: 389
A140: 1293 | B140: 550EU | C140: 한우 | D140: 감천면 | E140: 71
A141: 1305 | B141: 550F9 | C141: 한우 | D141: 감천면 | E141: 512
A142: 1327 | B142: 550G2 | C142: 한우 | D142: 감천면 | E142: 1,300
A143: 1342 | B143: 550GK | C143: 한우 | D143: 감천면 | E143: 396
A144: 1351 | B144: 550GW | C144: 한우 | D144: 감천면 | E144: 677
A145: 1355 | B145: 550H2 | C145: 한우 | D145: 감천면 | E145: 1,100
A146: 1422 | B146: 550J5 | C146: 한우 | D146: 감천면 | E146: 66
A147: 1455 | B147: 550K3 | C147: 한우 | D147: 감천면 | E147: 640
A148: 1456 | B148: 550K4 | C148: 한우 | D148: 감천면 | E148: 768
A149: 1458 | B149: 550K6 | C149: 한우 | D149: 감천면 | E149: 60
A150: 1460 | B150: 550K8 | C150: 한우 | D150: 감천면 | E150: 320
A151: 1462 | B151: 550KA | C151: 한우 | D151: 감천면 | E151: 160
A152: 1463 | B152: 550KB | C152: 한우 | D152: 감천면 | E152: 114.95
A153: 1469 | B153: 550KH | C153: 한우 | D153: 감천면 | E153: 12
A154: 1476 | B154: 550KP | C154: 한우 | D154: 감천면 | E154: 192
A155: 1477 | B155: 550KQ | C155: 한우 | D155: 감천면 | E155: 259.37
A156: 1481 | B156: 550KU | C156: 한우 | D156: 감천면 | E156: 92.94
A157: 1482 | B157: DI000 | C157: 한우 | D157: 감천면 | E157: 10
A158: 1505 | B158: DI00Q | C158: 한우 | D158: 감천면 | E158: 256
A159: 1507 | B159: DI00S | C159: 한우 | D159: 감천면 | E159: 70
A160: 1534 | B160: DI01K | C160: 한우 | D160: 감천면 | E160: 33
A161: 1536 | B161: DI01M | C161: 한우 | D161: 감천면 | E161: 98
A162: 1537 | B162: DI01N | C162: 한우 | D162: 감천면 | E162: 800
A163: 1538 | B163: DI01O | C163: 한우 | D163: 감천면 | E163: 160
A164: 1541 | B164: DI01R | C164: 한우 | D164: 감천면 | E164: 320
A165: 1543 | B165: DI01T | C165: 한우 | D165: 감천면 | E165: 350
A166: 1550 | B166: DI023 | C166: 한우 | D166: 감천면 | E166: 384
A167: 1572 | B167: DI02U | C167: 한우 | D167: 감천면 | E167: 260
A168: 1576 | B168: DI02Y | C168: 한우 | D168: 감천면 | E168: 237
A169: 1577 | B169: DI02Z | C169: 육우 | D169: 감천면 | E169: 850
A170: 1579 | B170: DI031 | C170: 한우 | D170: 감천면 | E170: 20
A171: 1599 | B171: DI03O | C171: 한우 | D171: 감천면 | E171: 198
A172: 1602 | B172: DI03R | C172: 한우 | D172: 감천면 | E172: 304
A173: 1607 | B173: DI03W | C173: 한우 | D173: 감천면 | E173: 192
A174: 1613 | B174: DI042 | C174: 한우 | D174: 감천면 | E174: 384
A175: 1617 | B175: DI046 | C175: 한우 | D175: 감천면 | E175: 33
A176: 1631 | B176: DI04M | C176: 한우 | D176: 감천면 | E176: 350
A177: 1632 | B177: DI04N | C177: 한우 | D177: 감천면 | E177: 660
A178: 1637 | B178: DI04S | C178: 한우 | D178: 감천면 | E178: 576
A179: 1643 | B179: DI04Z | C179: 한우 | D179: 감천면 | E179: 320
A180: 1652 | B180: DI05A | C180: 한우 | D180: 감천면 | E180: 640
A181: 1657 | B181: DI05G | C181: 한우 | D181: 감천면 | E181: 1,233
A182: 1658 | B182: DI05H | C182: 한우 | D182: 감천면 | E182: 1,200
A183: 1660 | B183: DI05J | C183: 한우 | D183: 감천면 | E183: 1,200
A184: 1661 | B184: DI05K | C184: 한우 | D184: 감천면 | E184: 2,600
A185: 1668 | B185: DI05R | C185: 한우 | D185: 감천면 | E185: 160
A186: 1676 | B186: DI05Z | C186: 육우 | D186: 감천면 | E186: 1,720
A187: 1677 | B187: DI060 | C187: 한우 | D187: 감천면 | E187: 800
A188: 1678 | B188: DI061 | C188: 한우 | D188: 감천면 | E188: 405
A189: 1680 | B189: DI063 | C189: 한우 | D189: 감천면 | E189: 700
A190: 1684 | B190: DI069 | C190: 한우 | D190: 감천면 | E190: 648
A191: 1693 | B191: DI06I | C191: 한우 | D191: 감천면 | E191: 567
A192: 1695 | B192: DI06K | C192: 한우 | D192: 감천면 | E192: 350
A193: 1699 | B193: DI06O | C193: 한우 | D193: 감천면 | E193: 896
A194: 1702 | B194: DI06R | C194: 한우 | D194: 감천면 | E194: 296
A195: 1705 | B195: DI06U | C195: 한우 | D195: 감천면 | E195: 320
A196: 1707 | B196: DI06W | C196: 한우 | D196: 감천면 | E196: 576
A197: 1708 | B197: DI06X | C197: 한우 | D197: 감천면 | E197: 569.4
A198: 1713 | B198: DI072 | C198: 한우 | D198: 감천면 | E198: 304
A199: 1717 | B199: DI076 | C199: 한우 | D199: 감천면 | E199: 1,200
A200: 1718 | B200: DI077 | C200: 한우 | D200: 감천면 | E200: 1,600
... 1587 more rows
